bitfinex/quotes_BTCUSD_20250615
["timestamp","ask_amount","ask_price","bid_price","bid_amount"]
[1749961187966,0.65070044,105690.0,105680.0,0.39333091]
[1749961188203,0.65070044,105690.0,105680.0,0.38386874]
[1749961188423,0.64182488,105690.0,105680.0,0.38386874]
[1749961188685,0.64182488,105690.0,105680.0,0.39333091]
[1749961188915,0.65070044,105690.0,105680.0,0.39333091]
[1749961189582,0.65070045,105690.0,105680.0,0.37556658]
[1749961189793,0.64182488,105690.0,105680.0,0.37556658]
[1749961190252,0.65070045,105690.0,105680.0,0.39333091]
[1749961190712,0.65070045,105690.0,105680.0,0.40963091]
[1749961191061,0.65070044,105690.0,105680.0,0.39186658]
[1749961191280,0.65070044,105690.0,105680.0,0.40963091]
[1749961191730,0.65070045,105690.0,105680.0,0.40963091]
[1749961191957,0.65070045,105690.0,105680.0,0.39186658]
[1749961191958,0.64182488,105690.0,105680.0,0.39186658]
[1749961192188,0.64182488,105690.0,105680.0,0.40963091]
[1749961192671,0.65070045,105690.0,105680.0,0.40963091]
[1749961193602,0.64182488,105690.0,105680.0,0.40963091]
[1749961193833,0.65070046,105690.0,105680.0,0.40963091]
[1749961194300,0.65070052,105690.0,105680.0,0.39186658]
[1749961194526,0.65070053,105690.0,105680.0,0.40132866]
[1749961194749,0.65070054,105690.0,105680.0,0.37294216]
[1749961194974,0.65070054,105690.0,105680.0,0.38240433]
[1749961195206,0.64182488,105690.0,105680.0,0.38240433]
[1749961195419,0.64182488,105690.0,105680.0,0.40016879]
[1749961195648,0.65070053,105690.0,105680.0,0.40016879]
[1749961195865,0.64182488,105690.0,105680.0,0.40016879]
[1749961196086,0.65070053,105690.0,105680.0,0.40016879]
[1749961196339,0.65070053,105690.0,105680.0,0.39186641]
[1749961196578,0.65070054,105690.0,105680.0,0.39186641]
[1749961196835,0.65070056,105690.0,105680.0,0.39186641]
[1749961197057,0.65070055,105690.0,105680.0,0.40963075]
[1749961197282,0.65070055,105690.0,105680.0,0.40963078]
[1749961197507,0.64182488,105690.0,105680.0,0.40963078]
[1749961197725,0.65070056,105690.0,105680.0,0.40963079]
[1749961198193,0.64182488,105690.0,105680.0,0.39186641]
[1749961198414,0.65070056,105690.0,105680.0,0.40963078]
[1749961198645,0.65070051,105690.0,105680.0,0.39186641]
[1749961198895,0.64182488,105690.0,105680.0,0.40963077]
[1749961199127,0.65070052,105690.0,105680.0,0.40963076]
[1749961199353,0.64182488,105690.0,105680.0,0.40963076]
[1749961199602,0.65070051,105690.0,105680.0,0.40963076]
[1749961199818,0.64182488,105690.0,105680.0,0.40963076]
[1749961200039,0.65070052,105690.0,105680.0,0.40963076]
[1749961200267,0.6507005,105690.0,105680.0,0.40963077]
[1749961200501,0.65070052,105690.0,105680.0,0.40963076]
[1749961201647,0.22577063,105690.0,105680.0,0.40963098]
[1749961201916,0.21689432,105690.0,105680.0,0.40963098]
[1749961202143,0.21689432,105690.0,105680.0,0.40963096]
[1749961202371,0.21689432,105690.0,105680.0,0.40963093]
[1749961202813,0.21689432,105690.0,105680.0,0.40963094]
[1749961203030,0.21689432,105690.0,105680.0,0.40963093]
[1749961203494,0.21689432,105690.0,105680.0,0.39186641]
[1749961203741,0.66074769,105690.0,105680.0,0.39186641]
[1749961203969,0.66962413,105690.0,105680.0,0.39186641]
[1749961204186,0.66962414,105690.0,105680.0,0.39186641]
[1749961204404,0.66074769,105690.0,105680.0,0.39186641]
[1749961204677,0.66962414,105690.0,105680.0,0.39186641]
[1749961205110,0.66074769,105690.0,105680.0,0.39186641]
[1749961205324,0.66962414,105690.0,105680.0,0.39186641]
[1749961205526,0.66962414,105690.0,105680.0,0.4013284]
[1749961206006,0.66962424,105690.0,105680.0,0.4013284]
[1749961206291,0.66962437,105690.0,105680.0,0.4013284]
[1749961206615,0.66962435,105690.0,105680.0,0.4013284]
[1749961206827,0.6696243,105690.0,105680.0,0.4013284]
[1749961207304,0.66962425,105690.0,105680.0,0.4013284]
[1749961207527,0.66074769,105690.0,105680.0,0.4013284]
[1749961207776,0.66962425,105690.0,105680.0,0.4013284]
[1749961207995,0.66962427,105690.0,105680.0,0.4013284]
[1749961208204,0.66074769,105690.0,105680.0,0.4013284]
[1749961208401,0.66962426,105690.0,105680.0,0.4013284]
[1749961208859,0.66962429,105690.0,105680.0,0.4013284]
[1749961210628,0.66962429,105690.0,105680.0,0.4107903]
[1749961210863,0.66962426,105690.0,105680.0,0.4107903]
[1749961211294,0.66962429,105690.0,105680.0,0.4107903]
[1749961211505,0.66074769,105690.0,105680.0,0.4107903]
[1749961211919,0.66962428,105690.0,105680.0,0.4107903]
[1749961212422,0.66962429,105690.0,105680.0,0.4107903]
[1749961212951,0.66962377,105690.0,105680.0,0.4107903]
[1749961213799,0.66074769,105690.0,105680.0,0.4107903]
[1749961214005,0.66962404,105690.0,105680.0,0.4107903]
[1749961214225,0.67457098,105690.0,105680.0,0.4107903]
[1749961214453,0.67457095,105690.0,105680.0,0.4107903]
[1749961214669,0.48533829,105690.0,105680.0,0.4107903]
[1749961214883,0.04148492,105690.0,105680.0,0.4107903]
[1749961215126,0.0326086,105690.0,105680.0,0.4107903]
[1749961217583,0.0326086,105690.0,105680.0,0.4497503]
[1749961217799,0.47646197,105690.0,105680.0,0.4497503]
[1749961218016,0.4853383,105690.0,105680.0,0.4497503]
[1749961218223,0.47646197,105690.0,105680.0,0.4497503]
[1749961218446,0.48533829,105690.0,105680.0,0.4497503]
[1749961218803,0.47646197,105690.0,105680.0,0.46751359]
[1749961219035,0.48533829,105690.0,105680.0,0.46751359]
[1749961219438,0.47646197,105690.0,105680.0,0.46751359]
[1749961219677,0.66569463,105690.0,105680.0,0.43082641]
[1749961219898,0.66569463,105690.0,105680.0,0.4485897]
[1749961220172,0.67457096,105690.0,105680.0,0.4485897]
[1749961220430,0.66569463,105690.0,105680.0,0.4485897]
[1749961220692,0.67457095,105690.0,105680.0,0.4485897]
[1749961220923,0.67457095,105690.0,105680.0,0.4096297]
[1749961221142,0.67457095,105690.0,105680.0,0.39186641]
[1749961221364,0.66569463,105690.0,105680.0,0.4096297]
[1749961221603,0.67457095,105690.0,105680.0,0.4096297]
[1749961221846,0.67457095,105690.0,105680.0,0.39186641]
[1749961222068,0.67457095,105690.0,105680.0,0.40962971]
[1749961222272,0.67457094,105690.0,105680.0,0.39186641]
[1749961222483,0.67457094,105690.0,105680.0,0.40962976]
[1749961222717,0.67457098,105690.0,105680.0,0.40962976]
[1749961223352,0.66569463,105690.0,105680.0,0.40962976]
[1749961223540,0.67457098,105690.0,105680.0,0.40962976]
[1749961224020,0.66569463,105690.0,105680.0,0.40962976]
[1749961224234,0.67457168,105690.0,105680.0,0.40963115]
[1749961224529,0.67457171,105690.0,105680.0,0.40963115]
[1749961224884,0.6745717,105690.0,105680.0,0.40963115]
[1749961225069,0.6745717,105690.0,105680.0,0.39186641]
[1749961225070,0.66569463,105690.0,105680.0,0.39186641]
[1749961225290,0.6745717,105690.0,105680.0,0.40963109]
[1749961225508,0.67457173,105690.0,105680.0,0.4096309]
[1749961225714,0.66569463,105690.0,105680.0,0.39186641]
[1749961225928,0.67457173,105690.0,105680.0,0.3918664]
[1749961226139,0.67457173,105690.0,105680.0,0.40963088]
[1749961226346,0.67457173,105690.0,105680.0,0.38244441]
[1749961226553,0.66569463,105690.0,105680.0,0.40967096]
[1749961226765,0.66569463,105690.0,105680.0,0.41913298]
[1749961226987,0.67457173,105690.0,105680.0,0.41913299]
[1749961227423,0.66569463,105690.0,105680.0,0.41913299]
[1749961227676,0.67457173,105690.0,105680.0,0.41913296]
[1749961227984,0.66569463,105690.0,105680.0,0.40136848]
[1749961228158,0.67457173,105690.0,105680.0,0.41913297]
[1749961228354,0.67457173,105690.0,105680.0,0.40136848]
[1749961228607,0.67457173,105690.0,105680.0,0.41913297]
[1749961228817,0.66569463,105690.0,105680.0,0.40136848]
[1749961229017,0.67457044,105690.0,105680.0,0.41913039]
[1749961229230,0.66569463,105690.0,105680.0,0.41913039]
[1749961229443,0.66569463,105690.0,105680.0,0.41913038]
[1749961229654,0.67457044,105690.0,105680.0,0.40136848]
[1749961229863,0.67457044,105690.0,105680.0,0.41913038]
[1749961230067,0.67457044,105690.0,105680.0,0.40966839]
[1749961230268,0.67457044,105690.0,105680.0,0.40136857]
[1749961230690,0.67457042,105690.0,105680.0,0.41913061]
[1749961230926,0.67457041,105690.0,105680.0,0.41913066]
[1749961231353,0.67457046,105690.0,105680.0,0.41913066]
[1749961231573,0.67457046,105690.0,105680.0,0.41083047]
[1749961231816,1.13814317,105690.0,105680.0,0.02305133]
[1749961232029,1.1470187,105690.0,105680.0,0.02305227]
[1749961232244,0.70316519,105690.0,105680.0,0.02305239]
[1749961232463,0.69650872,105690.0,105680.0,0.02305259]
[1749961232687,0.69428985,105690.0,105680.0,0.02105259]
[1749961232916,0.70316505,105690.0,105680.0,0.0210526]
[1749961233159,0.70316506,105690.0,105680.0,0.00028926]
[1749961233337,0.68763345,105690.0,105680.0,0.00128926]
[1749961233555,0.75607188,105690.0,105680.0,0.01905256]
[1749961233770,0.69650865,105690.0,105680.0,0.00128926]
[1749961233980,0.70316505,105690.0,105680.0,0.00128926]
[1749961234196,0.70316505,105690.0,105680.0,0.01905256]
[1749961234197,0.6942899,105690.0,105680.0,0.01905256]
[1749961234426,0.70316517,105690.0,105680.0,0.01905255]
[1749961234855,0.6942899,105690.0,105680.0,0.01905255]
[1749961235066,0.68763345,105690.0,105680.0,0.00128926]
[1749961235279,0.69650868,105690.0,105680.0,0.00128926]
[1749961235494,0.69442625,105690.0,105680.0,0.00128926]
[1749961235738,0.68776983,105690.0,105680.0,0.00128926]
[1749961235962,0.69442629,105690.0,105680.0,0.00128926]
[1749961236592,0.6788946,105690.0,105680.0,0.00128926]
[1749961236800,0.69442629,105690.0,105680.0,0.00128926]
[1749961237025,0.69442628,105690.0,105680.0,0.00128926]
[1749961237244,0.69442629,105690.0,105680.0,0.00128926]
[1749961237682,0.6788946,105690.0,105680.0,0.00128926]
[1749961237917,1.12274797,105690.0,105680.0,0.00128926]
[1749961238086,1.13827967,105690.0,105680.0,0.00128926]
[1749961238249,1.13827966,105690.0,105680.0,0.00128926]
[1749961238478,1.13827964,105690.0,105680.0,0.00128926]
[1749961238680,1.14940435,105690.0,105680.0,0.00128926]
[1749961238892,1.29578797,105690.0,105680.0,0.00128926]
[1749961239122,1.31131951,105690.0,105680.0,0.00128926]
[1749961239359,1.31131948,105690.0,105680.0,0.00128926]
[1749961240217,1.29578797,105690.0,105680.0,0.00128926]
[1749961240434,1.30243511,105690.0,105680.0,0.00128926]
[1749961240645,1.31129803,105690.0,105680.0,0.00128926]
[1749961241087,1.31129802,105690.0,105680.0,0.00128926]
[1749961241292,1.31129803,105690.0,105680.0,0.00128926]
[1749961241699,1.30243539,105690.0,105680.0,0.00128926]
[1749961241905,1.31129881,105690.0,105680.0,0.00128926]
[1749961242121,1.30243655,105690.0,105680.0,0.00128926]
[1749961242331,1.31130178,105690.0,105680.0,0.00128926]
[1749961242527,1.31130284,105690.0,105680.0,0.00128926]
[1749961242747,1.30465389,105690.0,105680.0,0.00128926]
[1749961242954,1.30465026,105690.0,105680.0,0.00128926]
[1749961243181,1.30465022,105690.0,105680.0,0.00128926]
[1749961243454,1.30465017,105690.0,105680.0,0.00128926]
[1749961243657,1.30465013,105690.0,105680.0,0.00128926]
[1749961243983,1.30465017,105690.0,105680.0,0.00128926]
[1749961244184,1.29578797,105690.0,105680.0,0.00128926]
[1749961244386,1.30465036,105690.0,105680.0,0.00128926]
[1749961244605,1.30465038,105690.0,105680.0,0.00128926]
[1749961244817,1.30465073,105690.0,105680.0,0.00128926]
[1749961245242,1.30465072,105690.0,105680.0,0.00128926]
[1749961245447,0.8519346,105690.0,105680.0,0.00128926]
[1749961245658,0.86079724,105690.0,105680.0,0.00128926]
[1749961245856,0.86079688,105690.0,105680.0,0.00128926]
[1749961246070,0.86079676,105690.0,105680.0,0.00128926]
[1749961246492,0.86079673,105690.0,105680.0,0.00128926]
[1749961246697,0.8519346,105690.0,105680.0,0.00128926]
[1749961246902,0.86079687,105690.0,105680.0,0.00128926]
[1749961247302,0.8607967,105690.0,105680.0,0.00128926]
[1749961247513,0.86079654,105690.0,105680.0,0.00128926]
[1749961247723,0.86079652,105690.0,105680.0,0.00128926]
[1749961247937,0.86079661,105690.0,105680.0,0.00128926]
[1749961248155,0.8519346,105690.0,105680.0,0.00128926]
[1749961248392,0.86079671,105690.0,105680.0,0.00128926]
[1749961248808,0.8357346,105690.0,105680.0,0.00128926]
[1749961249017,0.8445967,105690.0,105680.0,0.00128926]
[1749961249228,0.8357346,105690.0,105680.0,0.00128926]
[1749961249450,0.8445967,105690.0,105680.0,0.00128926]
[1749961249662,0.84459671,105690.0,105680.0,0.00128926]
[1749961250545,0.8445967,105690.0,105680.0,0.00128926]
[1749961251056,0.84459671,105690.0,105680.0,0.00128926]
[1749961251282,0.8357346,105690.0,105680.0,0.00128926]
[1749961251749,0.8445967,105690.0,105680.0,0.00128926]
[1749961251985,0.8357346,105690.0,105680.0,0.00128926]
[1749961252464,0.84459671,105690.0,105680.0,0.00128926]
[1749961252936,0.8357346,105690.0,105680.0,0.00128926]
[1749961253150,0.84459671,105690.0,105680.0,0.00128926]
[1749961253360,0.8357346,105690.0,105680.0,0.00128926]
[1749961253623,0.84459671,105690.0,105680.0,0.00128926]
[1749961253839,0.8512457,105690.0,105680.0,0.00128926]
[1749961254052,0.84459993,105690.0,105680.0,0.00128926]
[1749961254264,0.85124893,105690.0,105680.0,0.00128926]
[1749961254479,0.85124894,105690.0,105680.0,0.00128926]
[1749961254698,0.8423836,105690.0,105680.0,0.00128926]
[1749961254930,0.85124894,105690.0,105680.0,0.00128926]
[1749961255353,0.8423836,105690.0,105680.0,0.00128926]
[1749961255567,0.85124894,105690.0,105680.0,0.00128926]
[1749961256002,0.85124895,105690.0,105680.0,0.00128926]
[1749961256865,0.84238361,105690.0,105680.0,0.00128926]
[1749961257078,0.69820895,105690.0,105680.0,0.00128926]
[1749961257291,0.8356946,105690.0,105680.0,0.00128926]
[1749961257545,0.84234361,105690.0,105680.0,0.00128926]
[1749961257754,0.85120896,105690.0,105680.0,0.00128926]
[1749961258182,0.69820895,105690.0,105680.0,0.00128926]
[1749961258387,0.85120895,105690.0,105680.0,0.00128926]
[1749961258599,0.84455995,105690.0,105680.0,0.00128926]
[1749961258847,0.84234361,105690.0,105680.0,0.00128926]
[1749961259055,0.85123313,105690.0,105680.0,0.00128926]
[1749961259266,0.84235397,105690.0,105680.0,0.00128926]
[1749961259506,0.85123311,105690.0,105680.0,0.00128926]
[1749961259725,0.84235396,105690.0,105680.0,0.00128926]
[1749961259942,0.85123313,105690.0,105680.0,0.00128926]
[1749961260333,0.84457376,105690.0,105680.0,0.00128926]
[1749961260565,0.85123312,105690.0,105680.0,0.00128926]
[1749961261305,0.84235396,105690.0,105680.0,0.00128926]
[1749961261531,0.85123314,105690.0,105680.0,0.00128926]
[1749961262930,0.85123315,105690.0,105680.0,0.00128926]
[1749961263352,0.85123314,105690.0,105680.0,0.00128926]
[1749961263562,0.69823314,105690.0,105680.0,0.00128926]
[1749961263770,0.85123314,105690.0,105680.0,0.00128926]
[1749961264189,0.84457377,105690.0,105680.0,0.00128926]
[1749961264401,0.85123314,105690.0,105680.0,0.00128926]
[1749961265267,0.84235397,105690.0,105680.0,0.00128926]
[1749961265470,0.85123315,105690.0,105680.0,0.00128926]
[1749961265676,0.84235398,105690.0,105680.0,0.00128926]
[1749961265884,0.8356946,105690.0,105680.0,0.00128926]
[1749961266093,0.84457377,105690.0,105680.0,0.00128926]
[1749961266501,0.85123315,105690.0,105680.0,0.00128926]
[1749961266958,0.84457377,105690.0,105680.0,0.01905511]
[1749961267177,0.85123315,105690.0,105680.0,0.00128926]
[1749961267403,0.84235398,105690.0,105680.0,0.01905508]
[1749961267640,0.84457377,105690.0,105680.0,0.01905508]
[1749961267887,0.85123314,105690.0,105680.0,0.01905508]
[1749961268142,0.85123309,105690.0,105680.0,0.01905509]
[1749961268407,0.84235396,105690.0,105680.0,0.0190551]
[1749961268624,0.8356946,105690.0,105680.0,0.0190551]
[1749961268854,0.85123311,105690.0,105680.0,0.0190551]
[1749961269070,0.84457375,105690.0,105680.0,0.0190551]
[1749961269273,0.84235396,105690.0,105680.0,0.0190551]
[1749961269482,0.85123311,105690.0,105680.0,0.0190551]
[1749961269693,0.84235396,105690.0,105680.0,0.00128926]
[1749961269914,0.85123339,105690.0,105680.0,0.01905545]
[1749961270119,0.85123339,105690.0,105680.0,0.00128926]
[1749961270551,0.85123338,105690.0,105680.0,0.01905541]
[1749961270766,0.8356946,105690.0,105680.0,0.00128926]
[1749961271191,0.85123339,105690.0,105680.0,0.01905544]
[1749961271618,0.85123339,105690.0,105680.0,0.01905542]
[1749961271844,0.84457367,105690.0,105680.0,0.01905542]
[1749961272068,0.8423539,105690.0,105680.0,0.01905502]
[1749961272302,0.84235392,105690.0,105680.0,0.01905502]
[1749961272535,0.85123302,105690.0,105680.0,0.01905502]
[1749961272781,0.85123302,105690.0,105680.0,0.00128926]
[1749961273030,0.85123302,105690.0,105680.0,0.01905502]
[1749961273257,0.84235392,105690.0,105680.0,0.01905502]
[1749961273691,0.85123302,105690.0,105680.0,0.01905502]
[1749961273904,0.84235392,105690.0,105680.0,0.01905502]
[1749961274182,0.8445737,105690.0,105680.0,0.00128926]
[1749961274405,0.8445737,105690.0,105680.0,0.01905502]
[1749961274621,0.85123303,105690.0,105680.0,0.01905502]
[1749961274835,0.8356946,105690.0,105680.0,0.01905502]
[1749961275032,0.85123303,105690.0,105680.0,0.01905502]
[1749961275456,0.84235393,105690.0,105680.0,0.00128926]
[1749961275702,0.6826946,105690.0,105680.0,0.01905502]
[1749961275953,0.69823303,105690.0,105680.0,0.01905502]
[1749961276177,0.6830331,105690.0,105680.0,0.01708926]
[1749961276400,0.68303309,105690.0,105680.0,0.03485497]
[1749961276619,0.6674946,105690.0,105680.0,0.01708926]
[1749961276859,0.6674946,105690.0,105680.0,0.03485496]
[1749961277088,0.68303311,105690.0,105680.0,0.01708926]
[1749961277316,0.68303311,105690.0,105680.0,0.03485496]
[1749961277485,0.67415396,105690.0,105680.0,0.01708926]
[1749961277763,0.68303311,105690.0,105680.0,0.01708926]
[1749961278097,0.68303311,105690.0,105680.0,0.03485496]
[1749961278311,0.67637375,105690.0,105680.0,0.01708926]
[1749961278528,0.6674946,105690.0,105680.0,0.01708926]
[1749961278740,0.68303311,105690.0,105680.0,0.01708926]
[1749961278972,0.68303311,105690.0,105680.0,0.03485495]
[1749961279361,0.67637375,105690.0,105680.0,0.01708926]
[1749961279583,0.6830331,105690.0,105680.0,0.03485495]
[1749961279802,0.67637374,105690.0,105680.0,0.01708926]
[1749961280053,0.6830331,105690.0,105680.0,0.034855]
[1749961280271,0.68303311,105690.0,105680.0,0.01708926]
[1749961280497,0.68303306,105690.0,105680.0,0.03485496]
[1749961280748,0.67415395,105690.0,105680.0,0.03485496]
[1749961281215,0.6674946,105690.0,105680.0,0.01708926]
[1749961281431,0.67415394,105690.0,105680.0,0.01708926]
[1749961281671,0.68303307,105690.0,105680.0,0.01708926]
[1749961281918,0.67415394,105690.0,105680.0,0.01708926]
[1749961282132,0.68303311,105690.0,105680.0,0.01708926]
[1749961282769,0.68303314,105690.0,105680.0,0.01708926]
[1749961282983,0.67415397,105690.0,105680.0,0.01708926]
[1749961283191,0.6674946,105690.0,105680.0,0.01708926]
[1749961283403,0.67637376,105690.0,105680.0,0.01708926]
[1749961283611,0.67415397,105690.0,105680.0,0.01708926]
[1749961284035,0.6674946,105690.0,105680.0,0.01708926]
[1749961284452,0.68303344,105690.0,105680.0,0.01708926]
[1749961284672,0.68303345,105690.0,105680.0,0.01708926]
[1749961284892,0.68303348,105690.0,105680.0,0.01708926]
[1749961285108,0.67637392,105690.0,105680.0,0.01708926]
[1749961285327,0.68303341,105690.0,105680.0,0.01708926]
[1749961285583,0.68303329,105690.0,105680.0,0.01708926]
[1749961285807,0.68303313,105690.0,105680.0,0.01708926]
[1749961286238,0.67637376,105690.0,105680.0,0.01708926]
[1749961286471,0.6674946,105690.0,105680.0,0.01708926]
[1749961286704,0.67415397,105690.0,105680.0,0.01708926]
[1749961286942,0.68303314,105690.0,105680.0,0.01708926]
[1749961287190,0.67637376,105690.0,105680.0,0.01708926]
[1749961287408,0.68303308,105690.0,105680.0,0.01708926]
[1749961287626,0.68303309,105690.0,105680.0,0.01708926]
[1749961288182,0.68303227,105690.0,105680.0,0.01708926]
[1749961288393,0.67637326,105690.0,105680.0,0.01708926]
[1749961288575,0.68303226,105690.0,105680.0,0.01708926]
[1749961288817,0.6674946,105690.0,105680.0,0.01708926]
[1749961289030,0.67637326,105690.0,105680.0,0.01708926]
[1749961289240,0.68303226,105690.0,105680.0,0.01708926]
[1749961289416,0.6741536,105690.0,105680.0,0.01708926]
[1749961289908,0.67415356,105690.0,105680.0,0.01708926]
[1749961290121,0.68303209,105690.0,105680.0,0.01708926]
[1749961290333,0.67637316,105690.0,105680.0,0.01708926]
[1749961290542,0.67415352,105690.0,105680.0,0.01708926]
[1749961290752,0.68303208,105690.0,105680.0,0.01708926]
[1749961291395,0.6674946,105690.0,105680.0,0.01708926]
[1749961291611,0.68303206,105690.0,105680.0,0.01708926]
[1749961291819,0.67415351,105690.0,105680.0,0.01708926]
[1749961292054,0.68303208,105690.0,105680.0,0.01708926]
[1749961292264,0.67637316,105690.0,105680.0,0.01708926]
[1749961292478,0.68303208,105690.0,105680.0,0.01708926]
[1749961292688,0.67637317,105690.0,105680.0,0.01708926]
[1749961292901,0.68303209,105690.0,105680.0,0.01708926]
[1749961293198,0.68303208,105690.0,105680.0,0.01708926]
[1749961293437,0.73593892,105690.0,105680.0,0.01708926]
[1749961293654,0.67637317,105690.0,105680.0,0.01708926]
[1749961293892,0.68303208,105690.0,105680.0,0.01708926]
[1749961294327,0.67637316,105690.0,105680.0,0.01708926]
[1749961294572,0.68303213,105690.0,105680.0,0.01708926]
[1749961294809,0.68303212,105690.0,105680.0,0.01708926]
[1749961295054,0.67637318,105690.0,105680.0,0.01708926]
[1749961295545,0.68303227,105690.0,105680.0,0.03278926]
[1749961295779,0.68303225,105690.0,105680.0,0.03278926]
[1749961296005,0.67637324,105690.0,105680.0,0.03278926]
[1749961296489,0.68303222,105690.0,105680.0,0.03278926]
[1749961296998,0.67415358,105690.0,105680.0,0.03278926]
[1749961297472,0.6830322,105690.0,105680.0,0.03278926]
[1749961297690,0.68303222,105690.0,105680.0,0.03278926]
[1749961297946,0.6830322,105690.0,105680.0,0.01708926]
[1749961298178,0.67415356,105690.0,105680.0,0.01708926]
[1749961298360,0.67637321,105690.0,105680.0,0.01708926]
[1749961298599,0.68303216,105690.0,105680.0,0.01708926]
[1749961298829,0.67415356,105690.0,105680.0,0.01708926]
[1749961299284,0.68303217,105690.0,105680.0,0.01708926]
[1749961299977,0.6674946,105690.0,105680.0,0.01708926]
[1749961300198,0.68303217,105690.0,105680.0,0.01708926]
[1749961300425,0.68303215,105690.0,105680.0,0.01708926]
[1749961300879,0.6763732,105690.0,105680.0,0.01708926]
[1749961301106,0.69943215,105690.0,105680.0,0.00128926]
[1749961301677,0.68303215,105690.0,105680.0,0.00128926]
[1749961301900,0.67637368,105690.0,105680.0,0.00128926]
[1749961302061,0.68303297,105690.0,105680.0,0.00128926]
[1749961302264,0.68303298,105690.0,105680.0,0.00128926]
[1749961302688,0.68303297,105690.0,105680.0,0.00128926]
[1749961302902,0.68303299,105690.0,105680.0,0.00128926]
[1749961303102,0.67415391,105690.0,105680.0,0.00128926]
[1749961303308,0.68303299,105690.0,105680.0,0.00128926]
[1749961303702,0.68303297,105690.0,105680.0,0.00128926]
[1749961304123,0.6741539,105690.0,105680.0,0.00128926]
[1749961304328,0.68303297,105690.0,105680.0,0.00128926]
[1749961304793,0.67637367,105690.0,105680.0,0.00128926]
[1749961305002,0.6674946,105690.0,105680.0,0.00128926]
[1749961305421,0.6830329,105690.0,105680.0,0.00128926]
[1749961305833,0.6989329,105690.0,105680.0,0.00128926]
[1749961306035,0.6833946,105690.0,105680.0,0.00128926]
[1749961306240,1.14278626,105690.0,105680.0,0.00128926]
[1749961306633,1.14278627,105690.0,105680.0,0.00128926]
[1749961306839,1.14278624,105690.0,105680.0,0.00128926]
[1749961307104,1.14278625,105690.0,105680.0,0.00128926]
[1749961307598,1.13612699,105690.0,105680.0,0.00128926]
[1749961307752,1.14278625,105690.0,105680.0,0.00128926]
[1749961307998,1.14278623,105690.0,105680.0,0.00128926]
[1749961308200,1.13390723,105690.0,105680.0,0.00128926]
[1749961308427,1.14278624,105690.0,105680.0,0.00128926]
[1749961308647,1.12724797,105690.0,105680.0,0.00128926]
[1749961308866,0.69005386,105690.0,105680.0,0.00128926]
[1749961309076,0.69893288,105690.0,105680.0,0.00128926]
[1749961309293,0.69227362,105690.0,105680.0,0.00128926]
[1749961309737,0.69893288,105690.0,105680.0,0.00128926]
[1749961310210,0.69005386,105690.0,105680.0,0.00128926]
[1749961310433,0.69227362,105690.0,105680.0,0.00128926]
[1749961310658,0.69005386,105690.0,105680.0,0.00128926]
[1749961310878,0.69893288,105690.0,105680.0,0.00128926]
[1749961311139,0.69227361,105690.0,105680.0,0.00128926]
[1749961311356,0.69893283,105690.0,105680.0,0.00128926]
[1749961311577,0.69227357,105690.0,105680.0,0.00128926]
[1749961311801,0.69893279,105690.0,105680.0,0.00128926]
[1749961312264,0.67415382,105690.0,105680.0,0.00128926]
[1749961312454,0.6674946,105690.0,105680.0,0.00128926]
[1749961312716,0.68303279,105690.0,105680.0,0.00128926]
[1749961313395,0.67637357,105690.0,105680.0,0.00128926]
[1749961313631,0.67415382,105690.0,105680.0,0.00128926]
[1749961313845,0.68303279,105690.0,105680.0,0.00128926]
[1749961314076,0.67637357,105690.0,105680.0,0.00128926]
[1749961314305,0.68303279,105690.0,105680.0,0.00128926]
[1749961314756,0.6830328,105690.0,105680.0,0.00128926]
[1749961314971,0.67415383,105690.0,105680.0,0.00128926]
[1749961315155,0.6830328,105690.0,105680.0,0.00128926]
[1749961315309,0.67415382,105690.0,105680.0,0.00128926]
[1749961315529,0.68303279,105690.0,105680.0,0.00128926]
[1749961315722,0.67637357,105690.0,105680.0,0.00128926]
[1749961315927,0.6674946,105690.0,105680.0,0.00128926]
[1749961316255,0.67637357,105690.0,105680.0,0.00128926]
[1749961316474,0.6830328,105690.0,105680.0,0.00128926]
[1749961316922,0.67637357,105690.0,105680.0,0.00128926]
[1749961317138,0.6830328,105690.0,105680.0,0.00128926]
[1749961317861,0.67637362,105690.0,105680.0,0.00128926]
[1749961318097,0.6674946,105690.0,105680.0,0.00128926]
[1749961318318,0.68303289,105690.0,105680.0,0.00128926]
[1749961319418,0.67637354,105690.0,105680.0,0.00128926]
[1749961319630,0.68303272,105690.0,105680.0,0.00128926]
[1749961319839,0.68303274,105690.0,105680.0,0.00128926]
[1749961320512,0.67637354,105690.0,105680.0,0.00128926]
[1749961320767,1.13390715,105690.0,105680.0,0.00128926]
[1749961321012,1.14278606,105690.0,105680.0,0.00128926]
[1749961321515,1.14278615,105690.0,105680.0,0.00128926]
[1749961322325,1.1801548,105690.0,105680.0,0.00128926]
[1749961322538,1.33390719,105690.0,105680.0,0.00128926]
[1749961322751,1.34278615,105690.0,105680.0,0.00128926]
[1749961322966,1.34278609,105690.0,105680.0,0.00128926]
[1749961323383,1.33390716,105690.0,105680.0,0.00128926]
[1749961323578,1.33612689,105690.0,105680.0,0.00128926]
[1749961324014,1.3427861,105690.0,105680.0,0.00128926]
[1749961324226,1.34278611,105690.0,105680.0,0.00128926]
[1749961324434,1.33390717,105690.0,105680.0,0.00128926]
[1749961324644,1.34278611,105690.0,105680.0,0.00128926]
[1749961325091,1.33612691,105690.0,105680.0,0.00128926]
[1749961325312,1.34278611,105690.0,105680.0,0.00128926]
[1749961325515,1.33390716,105690.0,105680.0,0.00128926]
[1749961325728,1.3427861,105690.0,105680.0,0.00128926]
[1749961326532,1.3361269,105690.0,105680.0,0.00128926]
[1749961326761,1.33390715,105690.0,105680.0,0.00128926]
[1749961327008,1.34278604,105690.0,105680.0,0.00128926]
[1749961327246,1.32724797,105690.0,105680.0,0.00128926]
[1749961327496,1.33612686,105690.0,105680.0,0.00128926]
[1749961327770,1.34278603,105690.0,105680.0,0.00128926]
[1749961328608,1.32688603,105690.0,105680.0,0.00128926]
[1749961329120,1.32022686,105690.0,105680.0,0.00128926]
[1749961329338,1.32688603,105690.0,105680.0,0.00128926]
[1749961329558,1.32022686,105690.0,105680.0,0.00128926]
[1749961329771,1.32688603,105690.0,105680.0,0.00128926]
[1749961329989,1.31134797,105690.0,105680.0,0.00128926]
[1749961330204,1.32688603,105690.0,105680.0,0.00128926]
[1749961330865,0.43917853,105690.0,105680.0,0.00128926]
[1749961331090,0.43917853,105690.0,105680.0,0.01628926]
[1749961331091,0.43917752,105690.0,105680.0,0.01628926]
[1749961331306,0.88303085,105690.0,105680.0,0.01628926]
[1749961331540,0.87415296,105690.0,105680.0,0.01628926]
[1749961331987,0.88303078,105690.0,105680.0,0.01628926]
[1749961332412,0.87415297,105690.0,105680.0,0.01628926]
[1749961332627,0.88303079,105690.0,105680.0,0.01628926]
[1749961332852,0.88303075,105690.0,105680.0,0.01628926]
[1749961333092,0.87637237,105690.0,105680.0,0.01628926]
[1749961333315,0.88303075,105690.0,105680.0,0.01628926]
[1749961333983,0.88303021,105690.0,105680.0,0.01628926]
[1749961334237,0.87415274,105690.0,105680.0,0.01628926]
[1749961334459,0.8830303,105690.0,105680.0,0.01628926]
[1749961334676,0.88303033,105690.0,105680.0,0.01628926]
[1749961334892,0.88303031,105690.0,105680.0,0.01628926]